[Event "Early-Titled-Tuesday-Blitz-October-03-2023"]
[Site "Chess.com"]
[Date "2023.10.03"]
[Round "7"]
[White "NMJeevanK"]
[Black "arenal72"]
[Result "1-0"]
[WhiteElo "2530"]
[BlackElo "2371"]
[TimeControl "180+1"]
[EndTime "9:19:48 PDT"]
[Termination "NMJeevanK won on time"]

1. e4 {[%clk 0:03:00.9]} 1... Nc6 {[%clk 0:02:55]} 2. Nf3 {[%clk 0:02:57.3]}
2... d6 {[%clk 0:02:53]} 3. d4 {[%clk 0:02:55.3]} 3... Nf6 {[%clk 0:02:51.2]} 4.
Nc3 {[%clk 0:02:50.3]} 4... g6 {[%clk 0:02:50.9]} 5. Bg5 {[%clk 0:02:47.7]} 5...
Bg7 {[%clk 0:02:47.4]} 6. Qd2 {[%clk 0:02:48]} 6... a6 {[%clk 0:02:47.1]} 7. d5
{[%clk 0:02:48.1]} 7... Nb8 {[%clk 0:02:45.1]} 8. Bh6 {[%clk 0:02:39.4]} 8...
O-O {[%clk 0:02:42.6]} 9. O-O-O {[%clk 0:02:35.1]} 9... b5 {[%clk 0:02:40.8]}
10. Bxg7 {[%clk 0:02:33.9]} 10... Kxg7 {[%clk 0:02:40]} 11. Bd3 {[%clk
0:02:22.1]} 11... c5 {[%clk 0:02:38]} 12. e5 {[%clk 0:02:17.3]} 12... dxe5
{[%clk 0:02:36]} 13. Nxe5 {[%clk 0:02:18.2]} 13... Qd6 {[%clk 0:02:29.9]} 14. f4
{[%clk 0:02:16.8]} 14... c4 {[%clk 0:02:18.6]} 15. Be2 {[%clk 0:02:11.5]} 15...
Bb7 {[%clk 0:02:11.5]} 16. h4 {[%clk 0:02:05.2]} 16... Nbd7 {[%clk 0:02:03.8]}
17. Qd4 {[%clk 0:01:51.5]} 17... Qc5 {[%clk 0:01:51.2]} 18. h5 {[%clk
0:01:44.6]} 18... Qxd4 {[%clk 0:01:49.2]} 19. Rxd4 {[%clk 0:01:43.1]} 19... Nb6
{[%clk 0:01:45.3]} 20. d6 {[%clk 0:01:39.1]} 20... Rfd8 {[%clk 0:01:41.5]} 21.
h6+ {[%clk 0:01:26.9]} 21... Kf8 {[%clk 0:01:37.6]} 22. Rhd1 {[%clk 0:01:20.5]}
22... e6 {[%clk 0:01:29.7]} 23. g4 {[%clk 0:01:17]} 23... Nfd5 {[%clk
0:01:27.4]} 24. f5 {[%clk 0:01:00.5]} 24... f6 {[%clk 0:01:05.7]} 25. Nxd5
{[%clk 0:00:44.4]} 25... Bxd5 {[%clk 0:00:54]} 26. fxe6 {[%clk 0:00:33.8]} 26...
Bxe6 {[%clk 0:00:50.4]} 27. Rf1 {[%clk 0:00:30.9]} 27... Bf5 {[%clk 0:00:18.1]}
28. Nc6 {[%clk 0:00:16.2]} 28... Re8 {[%clk 0:00:15]} 29. Bd1 {[%clk 0:00:10.7]}
29... Bd7 {[%clk 0:00:10.6]} 30. Rxf6+ {[%clk 0:00:10.8]} 30... Kg8 {[%clk
0:00:10.5]} 31. Ne7+ {[%clk 0:00:11.2]} 31... Kh8 {[%clk 0:00:10.6]} 32. g5
{[%clk 0:00:09.9]} 32... Rf8 {[%clk 0:00:09.2]} 33. Rdf4 {[%clk 0:00:08]} 33...
Rxf6 {[%clk 0:00:08.3]} 34. Rxf6 {[%clk 0:00:08.9]} 34... b4 {[%clk 0:00:06.7]}
35. Bf3 {[%clk 0:00:08.3]} 35... Rd8 {[%clk 0:00:05.2]} 36. Rf7 {[%clk
0:00:07.9]} 36... Be6 {[%clk 0:00:04.4]} 37. Rf6 {[%clk 0:00:07.9]} 37... Bf5
{[%clk 0:00:02.4]} 38. c3 {[%clk 0:00:08.2]} 38... bxc3 {[%clk 0:00:02]} 39.
bxc3 {[%clk 0:00:09.1]} 39... Bd3 {[%clk 0:00:01.7]} 40. Bc6 {[%clk 0:00:08]}
1-0

[Event "Early-Titled-Tuesday-Blitz-October-03-2023"]
[Site "Chess.com"]
[Date "2023.10.03"]
[Round "7"]
[White "vladislavkovalev"]
[Black "sergoy"]
[Result "1-0"]
[WhiteElo "2876"]
[BlackElo "3013"]
[TimeControl "180+1"]
[EndTime "9:19:50 PDT"]
[Termination "vladislavkovalev won by resignation"]

1. e4 {[%clk 0:03:00.9]} 1... c6 {[%clk 0:02:59.8]} 2. Nf3 {[%clk 0:03:01.1]}
2... d5 {[%clk 0:03:00]} 3. d3 {[%clk 0:03:01.9]} 3... dxe4 {[%clk 0:02:55.5]}
4. dxe4 {[%clk 0:03:02.8]} 4... Qxd1+ {[%clk 0:02:56.1]} 5. Kxd1 {[%clk
0:03:03.7]} 5... Nf6 {[%clk 0:02:56.7]} 6. Nbd2 {[%clk 0:03:03.2]} 6... g6
{[%clk 0:02:52.4]} 7. Ne5 {[%clk 0:02:51.4]} 7... Nbd7 {[%clk 0:02:46.1]} 8. Nd3
{[%clk 0:02:41.3]} 8... Bg7 {[%clk 0:02:44.8]} 9. f3 {[%clk 0:02:40.1]} 9... O-O
{[%clk 0:02:45]} 10. c3 {[%clk 0:02:40.7]} 10... Ne8 {[%clk 0:02:39.3]} 11. Kc2
{[%clk 0:02:37.7]} 11... Nd6 {[%clk 0:02:39.4]} 12. Nb3 {[%clk 0:02:31]} 12...
f5 {[%clk 0:02:36.1]} 13. exf5 {[%clk 0:02:26.1]} 13... gxf5 {[%clk 0:02:31]}
14. Bd2 {[%clk 0:02:18.9]} 14... e5 {[%clk 0:02:25.4]} 15. Rd1 {[%clk
0:02:18.6]} 15... Nb6 {[%clk 0:02:18.9]} 16. Bc1 {[%clk 0:02:10.2]} 16... Re8
{[%clk 0:02:10.9]} 17. Ndc5 {[%clk 0:01:58.2]} 17... Nf7 {[%clk 0:02:11.2]} 18.
Na5 {[%clk 0:01:48.6]} 18... Rb8 {[%clk 0:02:01.2]} 19. b4 {[%clk 0:01:40.8]}
19... e4 {[%clk 0:01:23.2]} 20. c4 {[%clk 0:01:10]} 20... e3 {[%clk 0:01:00.8]}
21. Be2 {[%clk 0:01:08.9]} 21... f4 {[%clk 0:01:00.7]} 22. Kb3 {[%clk
0:01:04.8]} 22... Re7 {[%clk 0:00:44.5]} 23. g3 {[%clk 0:01:03.9]} 23... fxg3
{[%clk 0:00:44.7]} 24. hxg3 {[%clk 0:01:04]} 24... Nd7 {[%clk 0:00:45.2]} 25. f4
{[%clk 0:00:34]} 25... Nxc5+ {[%clk 0:00:39.7]} 26. bxc5 {[%clk 0:00:34.9]}
26... Bd7 {[%clk 0:00:40.2]} 27. Ba3 {[%clk 0:00:27.5]} 27... b6 {[%clk
0:00:35.5]} 28. cxb6 {[%clk 0:00:22.5]} 28... Rxb6+ {[%clk 0:00:36.4]} 29. Kc2
{[%clk 0:00:20.2]} 29... Bf5+ {[%clk 0:00:33.3]} 30. Bd3 {[%clk 0:00:20.5]}
30... e2 {[%clk 0:00:26.1]} 31. Bxe7 {[%clk 0:00:10.9]} 31... Rb2+ {[%clk
0:00:23.1]} 32. Kc1 {[%clk 0:00:11.3]} 32... exd1=Q+ {[%clk 0:00:19.2]} 33. Rxd1
{[%clk 0:00:12.2]} 33... Rxa2 {[%clk 0:00:04.4]} 34. Bxf5 {[%clk 0:00:10.4]}
34... Rxa5 {[%clk 0:00:04.7]} 35. Be6 {[%clk 0:00:07.9]} 35... Ra1+ {[%clk
0:00:04.3]} 36. Kc2 {[%clk 0:00:08.6]} 36... Ra2+ {[%clk 0:00:04.2]} 37. Kb3
{[%clk 0:00:07.2]} 37... Re2 {[%clk 0:00:04.4]} 38. Rd8+ {[%clk 0:00:06.6]} 1-0

[Event "Early-Titled-Tuesday-Blitz-October-03-2023"]
[Site "Chess.com"]
[Date "2023.10.03"]
[Round "7"]
[White "maracayo"]
[Black "mortngabriel"]
[Result "0-1"]
[WhiteElo "2387"]
[BlackElo "2575"]
[TimeControl "180+1"]
[EndTime "9:19:51 PDT"]
[Termination "mortngabriel won on time"]

1. e4 {[%clk 0:03:00.9]} 1... c5 {[%clk 0:02:58.1]} 2. Nf3 {[%clk 0:02:58.3]}
2... Nc6 {[%clk 0:02:57.9]} 3. Bb5 {[%clk 0:02:55.9]} 3... d6 {[%clk 0:02:57.1]}
4. O-O {[%clk 0:02:52.2]} 4... Bd7 {[%clk 0:02:53.9]} 5. Re1 {[%clk 0:02:50]}
5... a6 {[%clk 0:02:53.5]} 6. Bxc6 {[%clk 0:02:48.8]} 6... Bxc6 {[%clk 0:02:52]}
7. c3 {[%clk 0:02:45.5]} 7... e6 {[%clk 0:02:30.7]} 8. d4 {[%clk 0:02:43.2]}
8... cxd4 {[%clk 0:02:30.6]} 9. cxd4 {[%clk 0:02:42.4]} 9... Nf6 {[%clk
0:02:21.3]} 10. d5 {[%clk 0:02:38.5]} 10... Bd7 {[%clk 0:02:19.7]} 11. dxe6
{[%clk 0:02:31]} 11... Bxe6 {[%clk 0:02:19.9]} 12. Nc3 {[%clk 0:02:29.2]} 12...
Be7 {[%clk 0:02:17.2]} 13. Bf4 {[%clk 0:02:27]} 13... O-O {[%clk 0:02:11.8]} 14.
h3 {[%clk 0:02:26.2]} 14... Qd7 {[%clk 0:01:56]} 15. Qd2 {[%clk 0:02:05.6]}
15... Rfd8 {[%clk 0:01:52.7]} 16. Rad1 {[%clk 0:02:01.5]} 16... Rac8 {[%clk
0:01:32.3]} 17. Nd4 {[%clk 0:01:44.2]} 17... Bf8 {[%clk 0:01:11.3]} 18. Bg5
{[%clk 0:01:35.8]} 18... Be7 {[%clk 0:01:09]} 19. Nf5 {[%clk 0:00:41.3]} 19...
Bxf5 {[%clk 0:00:57]} 20. exf5 {[%clk 0:00:42.2]} 20... Re8 {[%clk 0:00:45.3]}
21. Bxf6 {[%clk 0:00:15.8]} 21... Bxf6 {[%clk 0:00:43.9]} 22. Nd5 {[%clk
0:00:16.7]} 22... Qxf5 {[%clk 0:00:31.6]} 23. g4 {[%clk 0:00:15.2]} 23... Qg6
{[%clk 0:00:24.7]} 24. Re3 {[%clk 0:00:11.9]} 24... h5 {[%clk 0:00:19.3]} 25.
Rde1 {[%clk 0:00:10]} 25... Rxe3 {[%clk 0:00:17.5]} 26. Nxe3 {[%clk 0:00:09.1]}
26... Bg5 {[%clk 0:00:16.1]} 27. gxh5 {[%clk 0:00:05.3]} 27... Qxh5 {[%clk
0:00:15.6]} 28. Qe2 {[%clk 0:00:04]} 28... Qg6 {[%clk 0:00:11.6]} 29. Ng4 {[%clk
0:00:03.8]} 29... f5 {[%clk 0:00:06.2]} 30. Nh2 {[%clk 0:00:03.6]} 30... Bd2+
{[%clk 0:00:05.3]} 31. Kh1 {[%clk 0:00:04.2]} 31... Bxe1 {[%clk 0:00:05.6]} 32.
Qxe1 {[%clk 0:00:05]} 32... Re8 {[%clk 0:00:03.7]} 33. Qd2 {[%clk 0:00:03.8]}
33... Qe6 {[%clk 0:00:03.9]} 34. Kg2 {[%clk 0:00:03.2]} 34... Qe4+ {[%clk
0:00:04.3]} 35. Nf3 {[%clk 0:00:03.2]} 35... Re6 {[%clk 0:00:03.1]} 0-1

[Event "Early-Titled-Tuesday-Blitz-October-03-2023"]
[Site "Chess.com"]
[Date "2023.10.03"]
[Round "7"]
[White "Witty_Alien"]
[Black "Rital44"]
[Result "1-0"]
[WhiteElo "2276"]
[BlackElo "2500"]
[TimeControl "180+1"]
[EndTime "9:19:53 PDT"]
[Termination "Witty_Alien won by checkmate"]

1. e4 {[%clk 0:03:00.9]} 1... c5 {[%clk 0:02:59.6]} 2. Nf3 {[%clk 0:03:00.4]}
2... Nc6 {[%clk 0:02:58.7]} 3. d4 {[%clk 0:03:00.7]} 3... cxd4 {[%clk
0:02:57.3]} 4. c3 {[%clk 0:02:59.1]} 4... dxc3 {[%clk 0:02:56.5]} 5. Bc4 {[%clk
0:02:58.6]} 5... e6 {[%clk 0:02:56.3]} 6. O-O {[%clk 0:02:58]} 6... a6 {[%clk
0:02:54.9]} 7. Nxc3 {[%clk 0:02:49.7]} 7... Nge7 {[%clk 0:02:54.7]} 8. Re1
{[%clk 0:02:46]} 8... Ng6 {[%clk 0:02:53.6]} 9. Nd5 {[%clk 0:01:37.6]} 9... d6
{[%clk 0:02:45.1]} 10. Bg5 {[%clk 0:01:33.6]} 10... f6 {[%clk 0:02:41.8]} 11.
Bh4 {[%clk 0:01:00.3]} 11... exd5 {[%clk 0:02:23.9]} 12. exd5+ {[%clk
0:00:59.4]} 12... Nce5 {[%clk 0:02:23.5]} 13. Nxe5 {[%clk 0:00:52]} 13... dxe5
{[%clk 0:02:23.1]} 14. Qh5 {[%clk 0:00:39.2]} 14... Bd6 {[%clk 0:02:17.5]} 15.
f4 {[%clk 0:00:31.4]} 15... O-O {[%clk 0:02:16.3]} 16. fxe5 {[%clk 0:00:22]}
16... Nxe5 {[%clk 0:01:53]} 17. Rxe5 {[%clk 0:00:21.7]} 17... Bxe5 {[%clk
0:01:50.8]} 18. d6+ {[%clk 0:00:16.3]} 18... Kh8 {[%clk 0:01:47]} 19. Bd3 {[%clk
0:00:16.8]} 19... Qb6+ {[%clk 0:01:27.5]} 20. Bf2 {[%clk 0:00:13.5]} 20... Qxf2+
{[%clk 0:01:15]} 21. Kxf2 {[%clk 0:00:13.8]} 21... f5 {[%clk 0:01:15.7]} 22. Re1
{[%clk 0:00:09.9]} 22... Bxd6 {[%clk 0:01:08.5]} 23. Re8 {[%clk 0:00:09.9]}
23... Bd7 {[%clk 0:01:04.4]} 24. Rxa8 {[%clk 0:00:09.8]} 24... Rxa8 {[%clk
0:01:04]} 25. Qf7 {[%clk 0:00:10.5]} 25... Rd8 {[%clk 0:00:51.4]} 26. Qd5 {[%clk
0:00:10.9]} 26... Bc6 {[%clk 0:00:46.8]} 27. Qf7 {[%clk 0:00:07.2]} 27... Rf8
{[%clk 0:00:45.3]} 28. Qh5 {[%clk 0:00:07.1]} 28... g6 {[%clk 0:00:44.5]} 29.
Qh6 {[%clk 0:00:06.9]} 29... Re8 {[%clk 0:00:40.7]} 30. h4 {[%clk 0:00:06.7]}
30... Bc5+ {[%clk 0:00:39.4]} 31. Kf1 {[%clk 0:00:05.8]} 31... Re3 {[%clk
0:00:26.6]} 32. Bc4 {[%clk 0:00:03.8]} 32... Re4 {[%clk 0:00:20.6]} 33. Bf7
{[%clk 0:00:04]} 33... Rg4 {[%clk 0:00:19.2]} 34. h5 {[%clk 0:00:02]} 34...
Bxg2+ {[%clk 0:00:18.6]} 35. Ke2 {[%clk 0:00:02.6]} 35... Be4 {[%clk 0:00:09.8]}
36. hxg6 {[%clk 0:00:02.4]} 36... Rg2+ {[%clk 0:00:03.3]} 37. Kf1 {[%clk
0:00:03]} 37... Rxg6 {[%clk 0:00:01.9]} 38. Bxg6 {[%clk 0:00:03.1]} 38... Kg8
{[%clk 0:00:02.2]} 39. Qxh7+ {[%clk 0:00:03.5]} 39... Kf8 {[%clk 0:00:02.9]} 40.
Qf7# {[%clk 0:00:04.4]} 1-0

[Event "Early-Titled-Tuesday-Blitz-October-03-2023"]
[Site "Chess.com"]
[Date "2023.10.03"]
[Round "7"]
[White "MAGMAchess02"]
[Black "vladgoncharov"]
[Result "1/2-1/2"]
[WhiteElo "2363"]
[BlackElo "2513"]
[TimeControl "180+1"]
[EndTime "9:19:55 PDT"]
[Termination "Game drawn by repetition"]

1. Nf3 {[%clk 0:03:00.9]} 1... Nf6 {[%clk 0:02:59.4]} 2. c4 {[%clk 0:03:00.5]}
2... c5 {[%clk 0:02:59.3]} 3. g3 {[%clk 0:02:58.4]} 3... Nc6 {[%clk 0:02:59]} 4.
Bg2 {[%clk 0:02:57.7]} 4... d6 {[%clk 0:02:58.8]} 5. Nc3 {[%clk 0:02:57.3]} 5...
g6 {[%clk 0:02:58.8]} 6. O-O {[%clk 0:02:56.8]} 6... Bg7 {[%clk 0:02:58.5]} 7.
d4 {[%clk 0:02:57.4]} 7... cxd4 {[%clk 0:02:58.3]} 8. Nxd4 {[%clk 0:02:58.3]}
8... Bd7 {[%clk 0:02:58.5]} 9. b3 {[%clk 0:02:47.3]} 9... O-O {[%clk 0:02:54]}
10. Bb2 {[%clk 0:02:47.1]} 10... Qa5 {[%clk 0:02:49]} 11. Nd5 {[%clk 0:02:17.8]}
11... Nxd5 {[%clk 0:02:43.6]} 12. Nxc6 {[%clk 0:01:43.6]} 12... bxc6 {[%clk
0:02:28.6]} 13. Bxg7 {[%clk 0:01:43.9]} 13... Kxg7 {[%clk 0:02:19.3]} 14. cxd5
{[%clk 0:01:44.2]} 14... c5 {[%clk 0:02:19.5]} 15. e4 {[%clk 0:01:36.2]} 15...
f6 {[%clk 0:02:18]} 16. f4 {[%clk 0:01:33.1]} 16... Qb4 {[%clk 0:02:12.2]} 17.
a3 {[%clk 0:01:13.4]} 17... Qb6 {[%clk 0:02:07.7]} 18. Kh1 {[%clk 0:01:04.8]}
18... a5 {[%clk 0:02:07.3]} 19. Rb1 {[%clk 0:00:57.1]} 19... Rab8 {[%clk
0:01:57]} 20. Qd2 {[%clk 0:00:55.1]} 20... h5 {[%clk 0:01:40.8]} 21. Qc3 {[%clk
0:00:54.2]} 21... Rh8 {[%clk 0:01:30.9]} 22. e5 {[%clk 0:00:51.6]} 22... h4
{[%clk 0:01:29]} 23. Rfe1 {[%clk 0:00:27.6]} 23... Qd8 {[%clk 0:01:10.3]} 24.
Re3 {[%clk 0:00:17.8]} 24... hxg3 {[%clk 0:01:08.9]} 25. Rxg3 {[%clk 0:00:16.3]}
25... Bf5 {[%clk 0:01:08]} 26. Re1 {[%clk 0:00:13.7]} 26... Rh4 {[%clk
0:00:58.6]} 27. Qe3 {[%clk 0:00:10]} 27... Rb7 {[%clk 0:00:45.6]} 28. Be4 {[%clk
0:00:08.6]} 28... Rxb3 {[%clk 0:00:24.5]} 29. Qxb3 {[%clk 0:00:05.6]} 29...
Bxe4+ {[%clk 0:00:23.6]} 30. Rxe4 {[%clk 0:00:06.5]} 30... dxe5 {[%clk
0:00:23.4]} 31. Rg2 {[%clk 0:00:03]} 31... exf4 {[%clk 0:00:21]} 32. Qd3 {[%clk
0:00:02.9]} 32... g5 {[%clk 0:00:20.4]} 33. Qf3 {[%clk 0:00:02.6]} 33... Qd6
{[%clk 0:00:15.4]} 34. Qe2 {[%clk 0:00:01.9]} 34... Kf7 {[%clk 0:00:15.1]} 35.
Re6 {[%clk 0:00:02]} 35... Qxd5 {[%clk 0:00:14.9]} 36. Rxe7+ {[%clk 0:00:01.7]}
36... Kg6 {[%clk 0:00:13.8]} 37. Qe4+ {[%clk 0:00:02]} 37... Qxe4 {[%clk
0:00:14.3]} 38. Rxe4 {[%clk 0:00:02.9]} 38... Rh3 {[%clk 0:00:14.5]} 39. Rc4
{[%clk 0:00:02.9]} 39... Rxa3 {[%clk 0:00:14.3]} 40. Rg1 {[%clk 0:00:03.2]}
40... Ra2 {[%clk 0:00:14.1]} 41. Rxc5 {[%clk 0:00:03.6]} 41... a4 {[%clk
0:00:14.1]} 42. Ra5 {[%clk 0:00:04]} 42... a3 {[%clk 0:00:14.5]} 43. Rg2 {[%clk
0:00:03.8]} 43... Ra1+ {[%clk 0:00:14.2]} 44. Rg1 {[%clk 0:00:04.5]} 44... Ra2
{[%clk 0:00:14.6]} 45. Rg2 {[%clk 0:00:04.5]} 45... Ra1+ {[%clk 0:00:14.4]} 46.
Rg1 {[%clk 0:00:05]} 46... Ra2 {[%clk 0:00:14.7]} 1/2-1/2

[Event "Early-Titled-Tuesday-Blitz-October-03-2023"]
[Site "Chess.com"]
[Date "2023.10.03"]
[Round "7"]
[White "chito89"]
[Black "jk13"]
[Result "1-0"]
[WhiteElo "2801"]
[BlackElo "2628"]
[TimeControl "180+1"]
[EndTime "9:19:57 PDT"]
[Termination "chito89 won by checkmate"]

1. c4 {[%clk 0:03:00.9]} 1... e6 {[%clk 0:03:00.3]} 2. Nf3 {[%clk 0:02:59.9]}
2... Nf6 {[%clk 0:03:00.8]} 3. g3 {[%clk 0:02:59.6]} 3... d5 {[%clk 0:03:01.5]}
4. Bg2 {[%clk 0:03:00]} 4... dxc4 {[%clk 0:03:02]} 5. O-O {[%clk 0:02:57.6]}
5... a6 {[%clk 0:03:01.4]} 6. a4 {[%clk 0:02:52.8]} 6... Nc6 {[%clk 0:03:01.4]}
7. b3 {[%clk 0:02:45]} 7... cxb3 {[%clk 0:02:59.9]} 8. Qxb3 {[%clk 0:02:45.9]}
8... Be7 {[%clk 0:02:56.3]} 9. Nc3 {[%clk 0:02:38.6]} 9... O-O {[%clk
0:02:56.6]} 10. Ba3 {[%clk 0:02:37.6]} 10... Rb8 {[%clk 0:02:27.3]} 11. Bxe7
{[%clk 0:02:28.8]} 11... Qxe7 {[%clk 0:02:27.6]} 12. d4 {[%clk 0:02:29.4]} 12...
Rd8 {[%clk 0:02:27]} 13. Rfd1 {[%clk 0:02:27]} 13... Bd7 {[%clk 0:02:18.4]} 14.
e4 {[%clk 0:02:12.2]} 14... h6 {[%clk 0:01:57.9]} 15. e5 {[%clk 0:02:04.1]}
15... Nd5 {[%clk 0:01:50.3]} 16. Nxd5 {[%clk 0:02:01.6]} 16... exd5 {[%clk
0:01:50.7]} 17. Qxd5 {[%clk 0:01:54.5]} 17... Bh3 {[%clk 0:01:50.7]} 18. Qe4
{[%clk 0:01:54]} 18... Bxg2 {[%clk 0:01:49.6]} 19. Kxg2 {[%clk 0:01:54.9]} 19...
Re8 {[%clk 0:01:10.4]} 20. Rab1 {[%clk 0:01:52]} 20... Na5 {[%clk 0:00:55.7]}
21. d5 {[%clk 0:01:49.8]} 21... b6 {[%clk 0:00:40.4]} 22. Qd3 {[%clk 0:01:35.7]}
22... Qd7 {[%clk 0:00:36.6]} 23. Rb4 {[%clk 0:01:30.6]} 23... b5 {[%clk
0:00:20.6]} 24. Rf4 {[%clk 0:00:55.6]} 24... Nc4 {[%clk 0:00:19.3]} 25. axb5
{[%clk 0:00:55.3]} 25... axb5 {[%clk 0:00:19.3]} 26. Qd4 {[%clk 0:00:51.8]}
26... Rbd8 {[%clk 0:00:17.7]} 27. Rg4 {[%clk 0:00:50.4]} 27... g6 {[%clk
0:00:14]} 28. e6 {[%clk 0:00:49.1]} 28... Qe7 {[%clk 0:00:12.7]} 29. Nh4 {[%clk
0:00:34.9]} 29... Kh7 {[%clk 0:00:09.2]} 30. Nf5 {[%clk 0:00:21.5]} 30... Qf8
{[%clk 0:00:07.1]} 31. Nxh6 {[%clk 0:00:22.1]} 31... Qxh6 {[%clk 0:00:03.8]} 32.
Rh4 {[%clk 0:00:22]} 32... Qxh4 {[%clk 0:00:03]} 33. Qxh4+ {[%clk 0:00:21.5]}
33... Kg7 {[%clk 0:00:03.9]} 34. exf7 {[%clk 0:00:16.7]} 34... Rf8 {[%clk
0:00:04.6]} 35. Re1 {[%clk 0:00:13.5]} 35... Rd7 {[%clk 0:00:04.7]} 36. Qd4+
{[%clk 0:00:12.2]} 36... Kh7 {[%clk 0:00:04.5]} 37. Re4 {[%clk 0:00:11.9]} 37...
g5 {[%clk 0:00:03.7]} 38. Re6 {[%clk 0:00:08.5]} 38... Rdxf7 {[%clk 0:00:03.8]}
39. Qe4+ {[%clk 0:00:09.2]} 39... Kh8 {[%clk 0:00:03.4]} 40. Rh6+ {[%clk
0:00:09.2]} 40... Kg8 {[%clk 0:00:04.1]} 41. Qg6+ {[%clk 0:00:09.4]} 41... Rg7
{[%clk 0:00:04.8]} 42. Qe6+ {[%clk 0:00:10.3]} 42... Rgf7 {[%clk 0:00:04.8]} 43.
Rh5 {[%clk 0:00:09]} 43... Kg7 {[%clk 0:00:03.4]} 44. Qh6+ {[%clk 0:00:08.3]}
44... Kg8 {[%clk 0:00:03.7]} 45. Qh8# {[%clk 0:00:09.2]} 1-0

[Event "Early-Titled-Tuesday-Blitz-October-03-2023"]
[Site "Chess.com"]
[Date "2023.10.03"]
[Round "7"]
[White "Danirod"]
[Black "mmDarko"]
[Result "0-1"]
[WhiteElo "2591"]
[BlackElo "2333"]
[TimeControl "180+1"]
[EndTime "9:19:58 PDT"]
[Termination "mmDarko won on time"]

1. e4 {[%clk 0:03:00.9]} 1... e6 {[%clk 0:02:54.8]} 2. d4 {[%clk 0:03:00.7]}
2... d5 {[%clk 0:02:47.8]} 3. Nd2 {[%clk 0:03:00.5]} 3... Nf6 {[%clk 0:02:45.4]}
4. e5 {[%clk 0:03:00.4]} 4... Nfd7 {[%clk 0:02:45.8]} 5. Bd3 {[%clk 0:03:00.3]}
5... b6 {[%clk 0:02:45.4]} 6. c3 {[%clk 0:02:41.7]} 6... Ba6 {[%clk 0:02:39.4]}
7. Bxa6 {[%clk 0:02:41.6]} 7... Nxa6 {[%clk 0:02:39.8]} 8. Ne2 {[%clk
0:02:33.5]} 8... c5 {[%clk 0:02:38.4]} 9. O-O {[%clk 0:02:33.5]} 9... b5 {[%clk
0:02:36.8]} 10. a3 {[%clk 0:02:30.7]} 10... Qb6 {[%clk 0:02:30.4]} 11. Nf3
{[%clk 0:02:29.7]} 11... Rc8 {[%clk 0:02:20.6]} 12. Be3 {[%clk 0:02:27.7]} 12...
Nab8 {[%clk 0:02:11.3]} 13. h4 {[%clk 0:02:25.1]} 13... Nc6 {[%clk 0:02:04]} 14.
h5 {[%clk 0:02:24.2]} 14... h6 {[%clk 0:02:01]} 15. b4 {[%clk 0:01:28.2]} 15...
cxd4 {[%clk 0:01:49.5]} 16. cxd4 {[%clk 0:01:15.9]} 16... Qb7 {[%clk 0:01:27.3]}
17. Nf4 {[%clk 0:01:13.1]} 17... Nb6 {[%clk 0:01:24.6]} 18. Nd3 {[%clk 0:01:04]}
18... Nc4 {[%clk 0:01:22.7]} 19. Nd2 {[%clk 0:00:45.4]} 19... a5 {[%clk
0:01:18.7]} 20. bxa5 {[%clk 0:00:44]} 20... N6xa5 {[%clk 0:01:12.5]} 21. Nb3
{[%clk 0:00:44.1]} 21... Nxb3 {[%clk 0:00:47.2]} 22. Qxb3 {[%clk 0:00:43.7]}
22... Be7 {[%clk 0:00:45.5]} 23. Rfb1 {[%clk 0:00:41.9]} 23... O-O {[%clk
0:00:39.3]} 24. Bc1 {[%clk 0:00:23.8]} 24... Qa7 {[%clk 0:00:31.4]} 25. Be3
{[%clk 0:00:17.3]} 25... Rb8 {[%clk 0:00:30]} 26. a4 {[%clk 0:00:17.2]} 26...
bxa4 {[%clk 0:00:25.3]} 27. Qa2 {[%clk 0:00:17.6]} 27... a3 {[%clk 0:00:23.8]}
28. Rxb8 {[%clk 0:00:16.1]} 28... Rxb8 {[%clk 0:00:22.8]} 29. Qe2 {[%clk
0:00:17]} 29... Qb7 {[%clk 0:00:18.7]} 30. Bc1 {[%clk 0:00:16.8]} 30... Qb3
{[%clk 0:00:17.7]} 31. Nf4 {[%clk 0:00:16]} 31... Qc3 {[%clk 0:00:15.8]} 32. Qa2
{[%clk 0:00:10.5]} 32... Qxd4 {[%clk 0:00:12.9]} 33. Rb1 {[%clk 0:00:04.4]}
33... Rxb1 {[%clk 0:00:09.5]} 34. Qxb1 {[%clk 0:00:05.3]} 34... Qxe5 {[%clk
0:00:08.2]} 35. Nd3 {[%clk 0:00:02.4]} 35... Qxh5 {[%clk 0:00:05.4]} 36. Qb8+
{[%clk 0:00:02]} 36... Kh7 {[%clk 0:00:05]} 37. Qa7 {[%clk 0:00:01.4]} 37... Bf6
{[%clk 0:00:03.1]} 0-1